[Event "44th Chess Olympiad Open 2022"]
[Site "Chennai"]
[Date "2022.08.03"]
[Round "6.40"]
[White "Tate, Alan"]
[Black "Liyanage, Ranindu Dilshan"]
[Result "1/2-1/2"]
[WhiteElo "2313"]
[BlackElo "2286"]
[Annotator "TA"]
[PlyCount "62"]
[EventDate "2022.??.??"]
[TimeControl "60"]

{[%evp 10,62,24,0,0,0,0,-13,0,0,0,0,0,0,0,-15,-8,-29,-22,-53,-52,-52,-55,-55,
-55,-55,-52,-52,-53,-52,-47,-50,-50,-50,-35,-37,-36,-39,-39,-45,-32,-39,-23,
-35,-25,-30,-12,-28,-16,-43,0,0,0,0,0]} 1. d4 {[%emt 0:00:08]} Nf6 {[%emt 0:00:
00]} 2. c4 {[%emt 0:00:31]} e6 {[%emt 0:00:09]} 3. Nf3 {[%emt 0:00:16]} d5 {
[%emt 0:00:15]} 4. g3 {[%emt 0:00:25]} dxc4 {[%emt 0:00:48]} 5. Bg2 {[%emt 0:
00:00]} a6 {[%emt 0:01:05]} 6. Ne5 {[%emt 0:05:38]} Bb4+ {[%emt 0:02:44] E04:
Open Catalan: 5 Nf3.} 7. Nc3 {[%emt 0:10:12] [#] Qa4+ is the strong threat.}
Nd5 $1 {[%emt 0:00:57]} 8. Qc2 {[%emt 0:08:09]} Nxc3 {[%emt 0:19:27]} 9. bxc3 {
[%emt 0:00:57]} Qxd4 $1 {[%emt 0:00:31]} 10. Qa4+ {[%emt 0:20:37]} Nd7 {
[%emt 0:01:38][%cal Yb8d7,Yd7b6,Yb6d5]} 11. Qxb4 {[%emt 0:00:08]} Qxe5 {
[%emt 0:00:06]} 12. Qxc4 {[%emt 0:13:19]} Nb6 $36 {[%emt 0:05:10] [#] Black is
pushing.} 13. Qb3 $146 {[%emt 0:02:44]} ({Predecessor:} 13. Qd4 Qxd4 14. cxd4
O-O 15. Bf4 Nd5 16. Bxd5 exd5 17. Bxc7 Re8 18. Kd2 Bd7 19. Rab1 {½-½ (19)
Yarmolyuk,Y (2191)-Rensburg,J (2315) GER email 2013}) 13... O-O {[%emt 0:01:45]
} 14. O-O {[%emt 0:05:30]} Qxe2 {[%emt 0:05:15]} 15. Bf4 {[%emt 0:02:10]} Nd5 {
[%emt 0:13:04]} 16. Rfe1 {[%emt 0:00:40]} Qb5 {[%emt 0:00:00]} 17. Qxb5 {
[%emt 0:00:11]} axb5 {[%emt 0:00:05]} 18. Bxd5 {[%emt 0:00:07]} exd5 {[%emt 0:
00:04]} 19. Bxc7 {[%emt 0:00:06]} Bf5 {[%emt 0:00:42]} 20. Bd6 {[%emt 0:01:44]}
Rfe8 {[%emt 0:01:47]} 21. f3 {[%emt 0:08:01]} Re6 {[%emt 0:00:00]} 22. Rxe6 {
[%emt 0:00:56]} fxe6 $15 {[%emt 0:00:08] Endgame KRB-KRB} 23. g4 {[%emt 0:03:
23]} Bd3 {[%emt 0:01:27]} 24. a3 {[%emt 0:01:42]} Rd8 {[%emt 0:02:02]} 25. Be5
{[%emt 0:00:54]} Rf8 {[%emt 0:01:32]} 26. f4 {[%emt 0:02:46]} Be4 {[%emt 0:06:
53]} 27. Ra2 {[%emt 0:03:22]} h6 {[%emt 0:00:00]} 28. Rb2 {[%emt 0:00:41]} Bd3
{[%emt 0:01:00]} 29. Kf2 {[%emt 0:00:15]} g5 {[%emt 0:03:37]} 30. Ke3 {[%emt 0:
00:10]} Bc4 {[%emt 0:02:14]} 31. h4 {[%emt 0:00:00]} gxf4+ {[%emt 0:06:38]
Weighted Error Value: White=0.06 (flawless) / Black=0.06 (flawless)} 1/2-1/2

[Event "44th Chess Olympiad Open 2022"]
[Site "Chennai"]
[Date "2022.08.03"]
[Round "6.40"]
[White "De Silva, L M S T.."]
[Black "Waldhausen Gordon, Frederick"]
[Result "1-0"]
[WhiteElo "2212"]
[BlackElo "2028"]
[Annotator "TA"]
[PlyCount "103"]
[EventDate "2022.??.??"]
[TimeControl "60"]

{[%evp 18,103,45,31,33,28,25,35,33,33,37,30,40,32,51,43,73,73,76,68,73,62,57,
40,53,34,71,66,86,55,54,54,43,43,92,72,89,56,101,0,49,57,60,51,57,0,0,0,66,50,
45,42,45,45,37,0,0,0,0,0,0,0,0,0,0,0,0,0,163,162,130,122,182,177,299,299,308,
315,977,896,1763,1639,5862,7950,29951,4738,4714,2265]} 1. e4 {[%emt 0:00:06]}
c5 {[%emt 0:00:02]} 2. Nf3 {[%emt 0:00:17]} g6 {[%emt 0:00:05]} 3. d4 {[%emt 0:
00:00]} cxd4 {[%emt 0:00:04]} 4. Nxd4 {[%emt 0:00:24]} Nc6 {[%emt 0:00:05]} 5.
c4 {[%emt 0:00:52]} Nf6 {[%emt 0:00:05]} 6. Nc3 {[%emt 0:00:48]} Nxd4 {[%emt 0:
00:00]} 7. Qxd4 {[%emt 0:00:04]} d6 {[%emt 0:00:07]} 8. Be3 {[%emt 0:00:37]}
Bg7 {[%emt 0:00:10]} 9. Be2 {[%emt 0:00:54]} O-O {[%emt 0:00:20]} 10. Qd3 {
[%emt 0:01:07]} a6 {[%emt 0:02:00][%cal Yb7b5] 10...a5 is the modern
continuation. B36: Sicilian: Maroczy Bind: Gurgenidze System.} 11. O-O {
[%emt 0:03:09]} Bd7 {[%emt 0:01:36]} 12. a4 {[%emt 0:03:31]} a5 {[%emt 0:01:09]
[#] White is slightly better.} 13. Rad1 $146 {[%emt 0:09:32]} ({Predecessor:} 
13. c5 dxc5 14. Bxc5 Bc6 15. Qe3 Qd7 16. f3 Qe6 17. Nb5 Bxb5 18. Bxb5 Nd7 19.
Ba3 {½-½ (43) Almasi,Z (2620)-Khalifman,A (2645) Wijk aan Zee 1995}) 13...
Bc6 {[%emt 0:02:12]} 14. b3 {[%emt 0:07:13]} Nd7 {[%emt 0:04:58]} 15. Qc2 {
[%emt 0:04:20]} Qc7 {[%emt 0:06:46]} 16. Nd5 {[%emt 0:04:57]} Bxd5 {[%emt 0:00:
00]} 17. exd5 {[%emt 0:01:06]} Nc5 {[%emt 0:02:42]} 18. Rde1 {[%emt 0:03:10]}
Rae8 {[%emt 0:03:08]} 19. Bd1 {[%emt 0:06:04]} b6 {[%emt 0:09:25]} 20. Bd2 {
[%emt 0:05:32]} Bd4 {[%emt 0:05:00]} 21. h4 {[%emt 0:04:20][%cal Yh2h4,Yh4h5]}
f5 {[%emt 0:08:09]} 22. h5 {[%emt 0:03:14]} Kg7 {[%emt 0:08:59]} 23. Bf4 {
[%emt 0:02:55]} Be5 {[%emt 0:04:50]} 24. Qd2 {[%emt 0:08:44]} Bxf4 {[%emt 0:06:
12]} 25. Qxf4 {[%emt 0:02:27]} e5 {[%emt 0:02:34]} (25... Qd7 $14 {might be
stronger.}) 26. dxe6 $1 $16 {[%emt 0:00:28]} Nxe6 {[%emt 0:00:20]} 27. Qc1 {
[%emt 0:01:29]} Nd4 {[%emt 0:04:25]} 28. Qf4 {[%emt 0:07:28]} (28. h6+ $16 Kf6
29. Re3 (29. Qf4 Qc5 $11)) 28... Qc5 {[%emt 0:03:04]} (28... Ne6 $1 $11 29. Qd2
Qc5) 29. Bf3 $14 {[%emt 0:02:34]} Re5 {[%emt 0:02:27]} 30. Rd1 {[%emt 0:00:00]}
Re4 {[%emt 0:01:06]} (30... Nxb3 31. Rd3 Qb4 32. Rfd1 $18) 31. Qd2 {[%emt 0:04:
52]} (31. h6+ $14 Kf7 32. Qd2 Nxf3+ 33. gxf3) 31... Nxf3+ $11 {[%emt 0:01:21]}
32. gxf3 {[%emt 0:00:01]} Re6 {[%emt 0:00:24]} (32... f4 $1 $11 33. h6+ (33.
fxe4 {is a self mate.} Qg5+ 34. Kh2 Qxh5+ 35. Kg2 Qg4+ 36. Kh2 f3 37. Qc3+ Kg8)
33... Kxh6 34. fxe4 Qg5+ 35. Kh1 Qh4+ 36. Kg2 Qg4+ 37. Kh2 Qh4+ 38. Kg2 Qg4+
39. Kh2 Qh4+ 40. Kg2) 33. h6+ {[%emt 0:00:25]} Kf7 $1 {[%emt 0:00:00][%cal
Yg6g5]} 34. Rfe1 {[%emt 0:00:45]} Rfe8 {[%emt 0:00:41]} 35. Rxe6 {[%emt 0:00:
13]} Rxe6 {[%emt 0:00:21]} 36. Qd5 {[%emt 0:00:51]} (36. f4 {keeps more
tension.} Ke7 37. Qb2 Kd7 38. Qh8) 36... Qxd5 {[%emt 0:01:43]} 37. Rxd5 {
[%emt 0:00:03] Endgame KR-KR} Kf6 $1 {[%emt 0:01:05]} 38. Rb5 {[%emt 0:01:25]}
d5 {[%emt 0:00:24]} 39. Rxd5 {[%emt 0:08:03] Hoping for Rd7.} Kg5 {[%emt 0:00:
34]} 40. Kg2 {[%emt 0:00:36]} Kxh6 {[%emt 0:01:02]} 41. f4 {[%emt 0:30:04]} Kg7
{[%emt 0:30:53]} 42. Rd7+ {[%emt 0:01:37]} Kf6 $2 {[%emt 0:00:00]} (42... Kh8
$11) 43. Rxh7 $18 {[%emt 0:02:04]} Rd6 {[%emt 0:04:20]} 44. Rc7 {[%emt 0:00:00]
} g5 {[%emt 0:00:00] [#]} (44... Ke6 $16 {was necessary.}) 45. c5 $1 {[%emt 0:
00:00]} bxc5 {[%emt 0:00:00]} (45... Re6 $142 46. fxg5+ Kxg5) 46. Rxc5 {
[%emt 0:00:00]} gxf4 {[%emt 0:00:00]} 47. Rxa5 {[%emt 0:00:00] Black must now
prevent Rb5.} Rd3 $2 {[%emt 0:00:00]} (47... Kg5 48. Rb5 Kg4) 48. Rb5 {[%emt 0:
00:00]} Kg5 {[%emt 0:00:00]} 49. a5 {[%emt 0:00:00] [#] And now a6 would win.}
Kg4 {[%emt 0:00:00]} 50. Rb4 {[%emt 0:00:00] White threatens a6 and mate.} Rd6
{[%emt 0:00:00]} 51. Ra4 {[%emt 0:00:00] Threatening mate with a6.} Ra6 {
[%emt 0:00:00]} 52. f3+ {[%emt 0:00:00] Weighted Error Value: White=0.12 (very
precise) /Black=0.39} 1-0

[Event "44th Chess Olympiad Open 2022"]
[Site "Chennai"]
[Date "2022.08.03"]
[Round "6.40"]
[White "Alahakoon, Isuru"]
[Black "Gourlay, Iain"]
[Result "0-1"]
[WhiteElo "2000"]
[BlackElo "2321"]
[Annotator "TA"]
[PlyCount "61"]
[EventDate "2022.??.??"]
[TimeControl "60"]

{[%evp 19,61,-1,10,-7,-1,-7,-5,-10,-10,-14,-4,-8,-1,-2,0,0,0,0,0,0,0,0,9,0,0,0,
0,-368,-368,-322,-336,-381,-33,-1101,-1086,-29996,-1100,-1060,-1033,-1035,-994,
-1285,-1275,-2264]} 1. Nf3 {[%emt 0:00:41]} d5 {[%emt 0:00:21]} 2. e3 {[%emt 0:
00:00]} Nf6 {[%emt 0:00:46]} 3. c4 {[%emt 0:00:25]} e6 {[%emt 0:00:41]} 4. b3 {
[%emt 0:01:35]} Nbd7 {[%emt 0:00:41]} 5. Bb2 {[%emt 0:02:14]} Bd6 {[%emt 0:00:
00]} 6. Nc3 {[%emt 0:02:57]} a6 {[%emt 0:03:18]} 7. d4 {[%emt 0:03:28]} b6 {
[%emt 0:00:32]} 8. Bd3 {[%emt 0:01:17]} Bb7 {[%emt 0:00:43]} 9. O-O {[%emt 0:
00:00]} O-O {[%emt 0:00:43]} 10. Rc1 {[%emt 0:00:39]} Qe7 {[%emt 0:04:19]} 11.
cxd5 {[%emt 0:14:17] E14: Queen's Indian: Classical Variation (4 e3).} exd5 {
[%emt 0:02:34]} 12. Ne2 {[%emt 0:09:35]} Rfe8 {[%emt 0:15:45]} 13. Ng3 {
[%emt 0:03:54] The position is equal.} g6 {[%emt 0:01:03] Inhibits Nf5.} 14.
Qc2 {[%emt 0:03:27]} Rac8 {[%emt 0:11:35]} 15. Qe2 {[%emt 0:02:28] [#]} h5 $146
{[%emt 0:15:55][%cal Yh7h5,Yh5h4]} ({Predecessor:} 15... Ra8 16. Rc2 Ne4 17.
Rfc1 Ndf6 18. a4 Nxg3 19. hxg3 Ne4 20. Ne5 c5 21. Bxe4 cxd4 22. Bxd4 Bxe5 23.
Bxe5 Qxe5 {0-1 (70) Alekseev,E (2620)-Petrosyan,M (2613) Moscow 2019}) 16. Rc2
{[%emt 0:09:47]} Ng4 {[%emt 0:04:50]} 17. Bxa6 {[%emt 0:09:59]} Bxa6 {[%emt 0:
00:07]} 18. Qxa6 {[%emt 0:00:05]} h4 {[%emt 0:09:08]} 19. Ne2 {[%emt 0:00:00]
next h3 is good for White.} Qe4 {[%emt 0:03:20]} 20. Rfc1 {[%emt 0:00:00]
Strongly threatening Nc3.} h3 $1 $132 {[%emt 0:05:07][%cal Yd6h2] Black is
fighting back} 21. Ng3 {[%emt 0:07:15]} Bxg3 {[%emt 0:01:22]} 22. hxg3 {
[%emt 0:00:17] Qe2 is the strong threat.} hxg2 {[%emt 0:01:07]} (22... Kg7 $5 {
[%cal Rh3g2]}) 23. Kxg2 {[%emt 0:02:58]} (23. Qe2 $1 $11 {and White is okay.})
23... Kg7 $1 $19 {[%emt 0:06:50]} 24. Qe2 {[%emt 0:00:00]} Rh8 {[%emt 0:01:08]}
25. Rh1 {[%emt 0:02:48] [#] Against Rh2+} ({Not} 25. Kg1 $2 Rh3 26. Kg2 Rch8
$19) 25... Ndf6 $2 {[%emt 0:06:33]} (25... Rxh1 $1 $19 26. Kxh1 Rh8+ 27. Kg1 g5
28. Rxc7 {[#]} Qh7 $1) 26. Rh3 {[%emt 0:00:26] Now White is beyond hope.} (26.
Rcc1 $15) 26... Rxh3 {[%emt 0:00:00]} 27. Kg1 {[%emt 0:00:11]} Rh5 {[%emt 0:00:
44]} (27... Rch8 $142 28. Nh2 Rxh2 29. Qf3 Qxf3 30. Rxc7 Qxf2#) 28. Nh4 {
[%emt 0:06:04] Black is clearly winning.} g5 {[%emt 0:01:29]} 29. f3 {[%emt 0:
02:36]} Qxe3+ {[%emt 0:00:16]} 30. Qxe3 {[%emt 0:00:30]} Nxe3 {[%emt 0:00:30]}
31. g4 {[%emt 0:00:30] Weighted Error Value: White=1.10/Black=0.71} 0-1

[Event "44th Chess Olympiad Open 2022"]
[Site "Chennai"]
[Date "2022.08.03"]
[Round "6.41"]
[White "Ashiku, Franc"]
[Black "Garcia Cuestas, Kevin"]
[Result "1-0"]
[WhiteElo "2422"]
[BlackElo "1984"]
[Annotator "TA"]
[PlyCount "61"]
[EventDate "2022.??.??"]
[TimeControl "60"]

{[%evp 22,61,97,95,118,105,178,93,124,117,117,112,137,110,225,143,155,147,261,
243,235,222,236,229,361,368,475,490,558,399,1147,1141,1131,1132,1129,987,931,
824,29990,29991,29995,29996]} 1. d4 {[%emt 0:00:13]} Nf6 {[%emt 0:00:11]} 2. c4
{[%emt 0:00:05]} e6 {[%emt 0:00:21]} 3. Nc3 {[%emt 0:00:05]} c5 {[%emt 0:00:05]
} 4. d5 {[%emt 0:00:53]} exd5 {[%emt 0:00:15]} 5. cxd5 {[%emt 0:00:05]} d6 {
[%emt 0:00:06]} 6. e4 {[%emt 0:01:34]} g6 {[%emt 0:00:10]} 7. h3 {[%emt 0:00:
00]} Bg7 {[%emt 0:00:13]} 8. Nf3 {[%emt 0:00:05]} O-O {[%emt 0:00:21]} 9. Bd3 {
[%emt 0:00:09]} Re8 {[%emt 0:04:00]} 10. O-O {[%emt 0:00:23]} Na6 {[%emt 0:00:
00] 10...Nbd7 is the modern continuation.} 11. Re1 {[%emt 0:04:33]} Nc7 {
[%emt 0:01:28]} 12. a4 {[%emt 0:05:01] White is more active.} b6 {[%emt 0:00:
00] A70: Modern Benoni: 6 e4 g6 7 Nf3.} 13. Bf4 {[%emt 0:03:32]} a6 {[%emt 0:
00:00]} (13... Ba6 $16 {keeps fighting.}) 14. Nd2 {[%emt 0:05:47]} ({Better is
} 14. Qb3 $18) 14... Nh5 {[%emt 0:09:02] [#] White is better.} 15. Bh2 {
[%emt 0:00:32]} Be5 {[%emt 0:01:17]} 16. Bxe5 {[%emt 0:00:44]} Rxe5 {[%emt 0:
00:00]} 17. Bf1 {[%emt 0:00:41] [#]} Nf4 $146 {[%emt 0:23:22]} (17... Rb8 $16 {
might work better.}) ({Predecessor:} 17... Rb8 18. Nf3 Re8 19. e5 Bb7 20. Qd2
Qd7 21. g4 Ng7 22. Qh6 Bxd5 23. Nxd5 Nxd5 24. Bc4 Qc6 25. Ng5 {1-0 (25) Devcic,
D (2246)-Drugda,M (1987) Banska Stiavnica 2007}) 18. Re3 {[%emt 0:01:00]} Rg5 {
[%emt 0:10:43]} 19. Kh1 {[%emt 0:09:54]} f5 {[%emt 0:06:35]} (19... Rb8 $16 20.
Rf3 Nh5) 20. Qf3 {[%emt 0:12:54]} Nh5 {[%emt 0:04:32]} 21. Nc4 {[%emt 0:06:21]}
f4 {[%emt 0:06:53]} 22. Ree1 {[%emt 0:01:12] And now e5 would win.} Rb8 {
[%emt 0:00:34]} (22... Ne8 $142 23. e5 Bf5) 23. e5 $18 {[%emt 0:01:12]} dxe5 {
[%emt 0:11:23]} 24. Nxe5 {[%emt 0:00:25]} Bb7 {[%emt 0:03:11]} 25. Rad1 {
[%emt 0:02:12] Nc6 is the strong threat.} Ne8 $2 {[%emt 0:09:22]} (25... Rxe5
26. Rxe5 Qd6) 26. Nc6 {[%emt 0:00:46]} Qc7 {[%emt 0:01:17]} 27. Re7 {[%emt 0:
00:00]} Qc8 {[%emt 0:01:10]} 28. Nxb8 {[%emt 0:01:00]} Qxb8 {[%emt 0:00:06]}
29. Ne4 {[%emt 0:03:32]} Bxd5 {[%emt 0:00:37] [#]} 30. Nxg5 $1 {[%emt 0:01:05]}
Bxf3 {[%emt 0:00:07]} (30... Nhf6 31. Rxd5) 31. Bc4+ {[%emt 0:00:06] Weighted
Error Value: White=0.23 (precise) /Black=0.93} 1-0

[Event "44th Chess Olympiad Open 2022"]
[Site "Chennai"]
[Date "2022.08.03"]
[Round "6.41"]
[White "Veleshnja, Zino"]
[Black "Chahin Godoy, Angel Eduardo"]
[Result "1-0"]
[WhiteElo "2263"]
[BlackElo "1844"]
[Annotator "TA"]
[PlyCount "105"]
[EventDate "2022.??.??"]
[TimeControl "60"]

{[%evp 12,105,16,6,24,3,0,0,0,-3,0,-47,-50,-56,-51,-75,-54,-92,-114,-106,-116,
-108,-54,-131,-122,-124,-100,-144,-148,-203,-202,-240,-241,-312,-179,-181,-180,
-177,-179,-168,-164,-216,-204,-226,-211,-228,-220,-283,-210,-210,-194,-183,359,
377,353,380,349,370,329,351,413,168,173,145,159,149,146,134,151,147,157,149,
147,152,132,122,143,143,640,640,779,767,1900,1834,5102,2658,29970,29968,29965,
29967,29974,29974,29980,29981,29980,29974]} 1. d4 {[%emt 0:00:04]} Nf6 {
[%emt 0:00:23]} 2. c4 {[%emt 0:00:05]} e6 {[%emt 0:00:50]} 3. g3 {[%emt 0:00:
00]} d5 {[%emt 0:00:49]} 4. Nf3 {[%emt 0:00:04]} Bb4+ {[%emt 0:01:01]} 5. Bd2 {
[%emt 0:00:46]} a5 {[%emt 0:00:09]} 6. Bg2 {[%emt 0:00:22]} O-O {[%emt 0:00:58]
} 7. O-O {[%emt 0:02:13] 7.Qc2 injects fresh life into this line.} c6 {[%emt 0:
00:00] E11: Bogo-Indian.} 8. Bg5 {[%emt 0:04:08]} Be7 {[%emt 0:08:40]} 9. Nc3 {
[%emt 0:06:15]} Nbd7 {[%emt 0:05:46] The position is equal.} 10. Qc2 {[%emt 0:
00:00]} dxc4 {[%emt 0:16:59] [#]} 11. e4 $146 {[%emt 0:06:39] Prevents Nd5.} (
11. Nd2 $11) ({Predecessor:} 11. a4 Nd5 12. h4 h6 13. Bxe7 Qxe7 14. e4 Nb4 15.
Qe2 b6 16. Nd2 Ba6 17. e5 {1-0 (52) Stein,R (2325)-Buckels,V (2455) Playchess.
com INT 2020}) 11... b5 $15 {[%emt 0:07:48]} 12. Rad1 {[%emt 0:05:02]} Bb7 {
[%emt 0:07:07]} 13. Rfe1 {[%emt 0:03:28]} Re8 {[%emt 0:03:50]} 14. h4 {[%emt 0:
00:00]} h6 $1 {[%emt 0:04:12]} 15. Bc1 {[%emt 0:02:20]} a4 {[%emt 0:06:05]} 16.
a3 {[%emt 0:07:29]} Qb6 {[%emt 0:01:47]} 17. Be3 {[%emt 0:04:55]} ({White
should play} 17. e5 $1 $15 Nd5 18. Nxd5 cxd5 19. Bd2) 17... Ng4 {[%emt 0:00:17]
} 18. Bf4 {[%emt 0:01:38]} e5 {[%emt 0:03:41]} 19. dxe5 {[%emt 0:05:44]} Nc5 {
[%emt 0:00:07]} 20. Bh3 {[%emt 0:02:29]} (20. Nh2 $17 Nxh2 21. Kxh2) 20... Bc8
$1 $19 {[%emt 0:00:05]} 21. e6 {[%emt 0:09:01]} Bxe6 {[%emt 0:00:56]} 22. Nd4 {
[%emt 0:02:44]} Bc8 {[%emt 0:00:26]} ({Wrong is} 22... Nxf2 $2 23. Qxf2 Bxh3
24. Nf5 Bxf5 25. exf5 $19) (22... Nd3 $142 23. Nxe6 Qxf2+ 24. Qxf2 Ngxf2) 23.
Nf5 {[%emt 0:00:34]} Bxf5 {[%emt 0:00:06]} 24. exf5 {[%emt 0:00:44]} Nf6 {
[%emt 0:01:13]} 25. Be3 {[%emt 0:04:04]} Rad8 {[%emt 0:03:43]} 26. Bd4 {
[%emt 0:03:04]} (26. Kf1 {is a better defense.}) 26... Qc7 {[%emt 0:03:49]} 27.
Be5 {[%emt 0:00:33]} Qc8 {[%emt 0:02:34]} 28. Bf1 {[%emt 0:04:23]} Ng4 {
[%emt 0:00:35][%cal Yc5d3] And now ...Nd3! would win. Pair of Knights!} 29. Bd4
{[%emt 0:01:36][%cal Ye1e7]} Nb3 {[%emt 0:00:35]} 30. Bb6 {[%emt 0:01:12]} Rxd1
{[%emt 0:00:21]} 31. Qxd1 {[%emt 0:00:21]} Qxf5 {[%emt 0:00:52] [#]} (31... h5
$19 {avoids the disaster. Threatens to win with ...Bf6.} 32. Bh3 Nf6) 32. Rxe7
$1 $18 {[%emt 0:00:56] Remove Defender, Deflection, Decoy} Rxe7 {[%emt 0:00:10]
} 33. Qd8+ {[%emt 0:00:14]} Kh7 {[%emt 0:00:02]} 34. Qxe7 {[%emt 0:00:12]} Nd2
{[%emt 0:00:32]} 35. Bg2 {[%emt 0:00:29]} Ne5 {[%emt 0:00:00][%cal Yg4e5,Ye5f3,
Yf3e1,Ye1d3]} 36. Be3 {[%emt 0:04:41] Prevents g5.} (36. f4 $142 Ndf3+ 37. Kf2
Qc2+ 38. Ne2) 36... Ndf3+ {[%emt 0:00:59]} 37. Bxf3 {[%emt 0:00:13]} Nxf3+ {
[%emt 0:00:07]} 38. Kg2 {[%emt 0:01:36]} Ne1+ {[%emt 0:00:12]} 39. Kf1 {
[%emt 0:00:19]} Nd3 {[%emt 0:00:11] [#]} 40. Qe4 $1 {[%emt 0:02:38]} Qxe4 {
[%emt 0:00:21]} 41. Nxe4 {[%emt 0:30:10] Black must now prevent Bd4.} Nxb2 {
[%emt 0:30:03]} 42. Bd4 {[%emt 0:00:44] White is more active.} Nd3 {[%emt 0:00:
35]} 43. Nc5 {[%emt 0:00:00] Nxd3 is the strong threat.} Nxc5 {[%emt 0:00:00]}
44. Bxc5 $16 {[%emt 0:00:00] Endgame KB-KP} g5 $2 {[%emt 0:00:00] [#] Black
cannot hold the game after this.} (44... Kg6 $16) 45. h5 $1 $18 {[%emt 0:00:00]
} Kg8 {[%emt 0:00:00]} 46. Ke2 {[%emt 0:00:00]} f5 {[%emt 0:00:00]} 47. Ke3 {
[%emt 0:00:00] Hoping for Kd4.} Kg7 {[%emt 0:00:00]} 48. Kd4 {[%emt 0:00:00]}
g4 {[%emt 0:00:00]} 49. Kc3 {[%emt 0:00:00] White mates.} Kf6 {[%emt 0:00:00]}
50. Be3 {[%emt 0:00:00]} Kg7 {[%emt 0:00:00]} 51. Kb4 {[%emt 0:00:00]} Kh7 {
[%emt 0:00:00]} 52. Kc5 {[%emt 0:00:00]} Kg7 {[%emt 0:00:00]} 53. Kxc6 {
[%emt 0:00:00] Weighted Error Value: White=0.21 (precise) /Black=0.60} 1-0

[Event "44th Chess Olympiad Open 2022"]
[Site "Chennai"]
[Date "2022.08.03"]
[Round "6.41"]
[White "Chinchilla, Alejandro Jose"]
[Black "Pasko, Llambi"]
[Result "0-1"]
[WhiteElo "2166"]
[BlackElo "2418"]
[Annotator "TA"]
[PlyCount "75"]
[EventDate "2022.??.??"]
[TimeControl "60"]

{[%evp 12,75,2,0,0,-7,0,0,0,-12,0,-19,-22,-50,-51,-50,0,-20,-24,-20,-19,-85,
-62,-116,-72,-94,-78,-79,-85,-141,-116,-136,-102,-89,-93,-102,-96,-181,-148,
-168,-166,-208,-173,-168,-149,-212,-221,-202,-148,-134,-130,-131,-141,-136,
-117,-400,-406,-448,-443,-397,-387,-360,-391,-466,-466,-958]} 1. e4 {[%emt 0:
00:00]} e5 {[%emt 0:00:08]} 2. Nf3 {[%emt 0:00:16]} Nc6 {[%emt 0:00:06]} 3. Bb5
{[%emt 0:00:48]} Nf6 {[%emt 0:01:09]} 4. O-O {[%emt 0:07:11]} Bc5 {[%emt 0:00:
00]} 5. d3 {[%emt 0:10:04]} d6 {[%emt 0:01:37]} 6. Bxc6+ {[%emt 0:01:11]} bxc6
{[%emt 0:00:04]} 7. c3 {[%emt 0:00:06]} O-O {[%emt 0:02:29] C65: Ruy Lopez:
Berlin Defence (3...Nf6), unusual lines and 4 0-0 Bc5.} 8. h3 {[%emt 0:08:04]}
Re8 {[%emt 0:05:27]} 9. Re1 {[%emt 0:00:38]} h6 {[%emt 0:09:24] The position
is equal.} 10. Nbd2 {[%emt 0:06:16]} a5 {[%emt 0:00:30] [#]} 11. Nc4 $146 {
[%emt 0:24:44]} ({Predecessor:} 11. Nf1 Be6 12. b3 Bb6 13. Ng3 Qd7 14. d4 exd4
15. cxd4 Qc8 16. Qc2 Bd7 17. Be3 {1-0 (44) Martinez Alcantara,J (2620)-Sadykov,
R (2345) Chess.com INT 2021}) 11... a4 {[%emt 0:01:44]} 12. Be3 {[%emt 0:02:24]
} (12. d4 {feels hotter.} Be6 13. Ncxe5 dxe5 14. dxc5 Qxd1 15. Rxd1 Nxe4 16.
Nxe5 Bxh3 17. Nxc6 Ra6 18. Rd8) 12... Bxe3 {[%emt 0:00:40]} 13. Nxe3 {[%emt 0:
00:00]} d5 {[%emt 0:00:53]} (13... Nh5 $15) 14. exd5 {[%emt 0:06:15]} cxd5 {
[%emt 0:00:07]} 15. d4 {[%emt 0:00:14]} e4 {[%emt 0:03:36]} 16. Nd2 {[%emt 0:
00:00]} (16. Ne5 $11) 16... c6 {[%emt 0:04:09]} 17. c4 {[%emt 0:01:11]} (17.
Ndf1 $15) 17... Qb6 {[%emt 0:00:20][%csl Yb2,Yd4]} 18. Nc2 {[%emt 0:09:22]}
Qxb2 {[%emt 0:05:17]} 19. Rb1 {[%emt 0:00:32] [#]} Qc3 {[%emt 0:00:02] 0x0.
00144c29781fdp-1022s more active pieces.} (19... Qxa2 $2 20. Nb4 Qxb1 21. Qxb1
$18) 20. Re3 {[%emt 0:02:24]} (20. Rb4 $142 e3 21. Nb1 exf2+ 22. Kxf2 Rxe1 23.
Nxc3 Rxd1 24. Nxd1) 20... Qa5 $17 {[%emt 0:00:10]} 21. Ra3 {[%emt 0:01:17]} Bf5
{[%emt 0:03:11][%cal Ye4e3] ...e3! is the strong threat.} 22. Ne3 {[%emt 0:00:
00]} Be6 {[%emt 0:02:33]} 23. c5 {[%emt 0:00:37]} Nd7 {[%emt 0:02:20] Against
Rb6} 24. Qc2 {[%emt 0:02:23]} (24. h4 $17 {was necessary.}) 24... Reb8 {
[%emt 0:03:03]} 25. Rxb8+ {[%emt 0:00:47]} Nxb8 {[%emt 0:00:04]} 26. Nb1 {
[%emt 0:02:28]} Qb4 {[%emt 0:00:33] And now ...Nd7 would win.} 27. Qd1 {
[%emt 0:00:54]} Nd7 $36 {[%emt 0:05:55] Hoping for ...Rb8. White is under
strong pressure.} 28. Rc3 {[%emt 0:00:41]} (28. Nc2 $17 Qb2 29. Nc3) 28... Rb8
$19 {[%emt 0:04:09]} 29. Rc1 {[%emt 0:00:05]} Qb2 {[%emt 0:00:45]} 30. Nc3 {
[%emt 0:00:23]} Rb4 {[%emt 0:00:25][%cal Yb4d4] White must now prevent ...Rxd4!
} 31. Rc2 {[%emt 0:01:33]} Qa3 {[%emt 0:00:36][%cal Yd7c5]} 32. Qd2 {[%emt 0:
01:31]} Nxc5 {[%emt 0:01:10] aiming for ...Nd3.} 33. Ncxd5 $2 {[%emt 0:02:16]
Loses the game.} (33. Ncd1 $17 Nb3 34. axb3) 33... cxd5 {[%emt 0:01:54]} 34.
Rxc5 {[%emt 0:00:16]} Rb2 {[%emt 0:00:42]} 35. Rc2 {[%emt 0:00:33]} Rxc2 {
[%emt 0:02:38]} ({Not} 35... Rb1+ $2 36. Kh2 $19) 36. Qxc2 {[%emt 0:00:09] [#]}
Qb4 {[%emt 0:00:05] Inhibits Qd2.} 37. Qd1 {[%emt 0:00:00]} a3 {[%emt 0:00:06]}
38. Qb3 {[%emt 0:00:00] Weighted Error Value: White=0.35/Black=0.11 (very
precise)} (38. Nf1 $142) 0-1